[Event "December 19 Early 2023"]
[Site "https://www.chess.com"]
[Date "2023.12.19"]
[Round "4"]
[White "Polak, Kinga"]
[Black "Szyszylo, Rafal"]
[Result "0-1"]
[Board "228"]
[TimeControl "180+1"]
[WhiteFideId "1134680"]
[BlackFideId "1109626"]
[WhiteElo "2075"]
[BlackElo "1951"]
[WhiteTeam "POL"]
[BlackTeam "POL"]
[WhiteClock "0:00:21"]
[BlackClock "0:01:34"]

1. e4 {[%clk 0:03:00]}  d6 {[%clk 0:02:58]} 2. d4 {[%clk 0:02:59]}  Nf6 {[%clk 0:02:59]} 3. Nc3 {[%clk 0:02:58]}  g6 {[%clk 0:02:59]} 4. f3 {[%clk 0:02:58]}  c6 {[%clk 0:02:58]} 5. Be3 {[%clk 0:02:56]}  Nbd7 {[%clk 0:02:58]} 6. Qd2 {[%clk 0:02:57]}  b5 {[%clk 0:02:59]} 7. g4 {[%clk 0:02:52]}  Nb6 {[%clk 0:02:56]} 8. h4 {[%clk 0:02:45]}  h5 {[%clk 0:02:54]} 9. g5 {[%clk 0:02:33]}  Nfd7 {[%clk 0:02:55]} 10. d5 {[%clk 0:02:25]}  c5 {[%clk 0:02:33]} 11. Bxb5 {[%clk 0:02:19]}  Bg7 {[%clk 0:02:33]} 12. Nge2 {[%clk 0:02:12]}  O-O {[%clk 0:02:32]} 13. Kf2 {[%clk 0:01:58]}  Ne5 {[%clk 0:02:24]} 14. b3 {[%clk 0:01:21]}  a6 {[%clk 0:02:15]} 15. Bd3 {[%clk 0:01:18]}  c4 {[%clk 0:02:14]} 16. bxc4 {[%clk 0:01:15]}  Nbxc4 {[%clk 0:02:14]} 17. Bxc4 {[%clk 0:01:15]}  Nxc4 {[%clk 0:02:14]} 18. Qd3 {[%clk 0:01:13]}  Nxe3 {[%clk 0:02:13]} 19. Qxe3 {[%clk 0:01:13]}  Qc7 {[%clk 0:02:07]} 20. Kg2 {[%clk 0:01:12]}  Bd7 {[%clk 0:02:07]} 21. Rab1 {[%clk 0:01:12]}  Rfc8 {[%clk 0:02:04]} 22. Rb3 {[%clk 0:01:12]}  Qa5 {[%clk 0:02:03]} 23. Rhb1 {[%clk 0:01:05]}  Rc7 {[%clk 0:01:59]} 24. Rb8+ {[%clk 0:01:01]}  Rxb8 {[%clk 0:01:59]} 25. Rxb8+ {[%clk 0:01:02]}  Kh7 {[%clk 0:01:59]} 26. Rb3 {[%clk 0:01:02]}  Bb5 {[%clk 0:01:42]} 27. Nxb5 {[%clk 0:00:43]}  axb5 {[%clk 0:01:42]} 28. Nc3 {[%clk 0:00:21]}  Rxc3 {[%clk 0:01:34]} 0-1

[Event "December 19 Early 2023"]
[Site "https://www.chess.com"]
[Date "2023.12.19"]
[Round "4"]
[White "Umarov, Sabir"]
[Black "Nikulina, Alena"]
[Result "1-0"]
[Board "233"]
[TimeControl "180+1"]
[WhiteFideId "14200538"]
[BlackFideId "4172051"]
[WhiteElo "2298"]
[BlackElo "1627"]
[WhiteTeam "UZB"]
[BlackTeam "RUS"]
[WhiteClock "0:00:07"]
[BlackClock "0:00:07"]

1. e4 {[%clk 0:03:00]}  c5 {[%clk 0:02:59]} 2. Nf3 {[%clk 0:02:59]}  e6 {[%clk 0:02:56]} 3. Nc3 {[%clk 0:02:57]}  Nc6 {[%clk 0:02:56]} 4. Bb5 {[%clk 0:02:56]}  Nd4 {[%clk 0:02:55]} 5. a4 {[%clk 0:02:54]}  a6 {[%clk 0:02:52]} 6. Bd3 {[%clk 0:02:48]}  Nc6 {[%clk 0:02:46]} 7. O-O {[%clk 0:02:48]}  Nf6 {[%clk 0:02:45]} 8. e5 {[%clk 0:02:44]}  Nd5 {[%clk 0:02:45]} 9. Re1 {[%clk 0:02:38]}  Be7 {[%clk 0:02:42]} 10. Be4 {[%clk 0:02:31]}  Nxc3 {[%clk 0:02:26]} 11. dxc3 {[%clk 0:02:32]}  Qc7 {[%clk 0:02:19]} 12. Bf4 {[%clk 0:02:30]}  O-O {[%clk 0:02:16]} 13. c4 {[%clk 0:02:28]}  f5 {[%clk 0:01:54]} 14. exf6 {[%clk 0:01:55]}  Qxf4 {[%clk 0:01:50]} 15. fxe7 {[%clk 0:01:56]}  Nxe7 {[%clk 0:01:44]} 16. Qd3 {[%clk 0:01:54]}  h6 {[%clk 0:01:26]} 17. a5 {[%clk 0:01:48]}  Nf5 {[%clk 0:01:07]} 18. g3 {[%clk 0:01:42]}  Qc7 {[%clk 0:00:57]} 19. c3 {[%clk 0:00:55]}  Rb8 {[%clk 0:00:27]} 20. b4 {[%clk 0:00:52]}  b6 {[%clk 0:00:23]} 21. axb6 {[%clk 0:00:34]}  Qxb6 {[%clk 0:00:19]} 22. Reb1 {[%clk 0:00:31]}  cxb4 {[%clk 0:00:16]} 23. cxb4 {[%clk 0:00:27]}  Qc7 {[%clk 0:00:13]} 24. c5 {[%clk 0:00:26]}  Bb7 {[%clk 0:00:13]} 25. Bxb7 {[%clk 0:00:24]}  Qxb7 {[%clk 0:00:14]} 26. Ne5 {[%clk 0:00:21]}  Rbd8 {[%clk 0:00:10]} 27. Qxa6 {[%clk 0:00:18]}  Qc7 {[%clk 0:00:10]} 28. Re1 {[%clk 0:00:17]}  Nd4 {[%clk 0:00:09]} 29. Qd3 {[%clk 0:00:16]}  Nf5 {[%clk 0:00:06]} 30. Nc4 {[%clk 0:00:13]}  Qc6 {[%clk 0:00:05]} 31. Ne5 {[%clk 0:00:09]}  Qb7 {[%clk 0:00:05]} 32. b5 {[%clk 0:00:09]}  Ne7 {[%clk 0:00:05]} 33. Qd4 {[%clk 0:00:07]}  Nd5 {[%clk 0:00:05]} 34. c6 {[%clk 0:00:07]}  dxc6 {[%clk 0:00:04]} 35. bxc6 {[%clk 0:00:07]}  Qc7 {[%clk 0:00:05]} 36. Rac1 {[%clk 0:00:07]}  Rf6 {[%clk 0:00:05]} 37. Ng4 {[%clk 0:00:07]}  Rg6 {[%clk 0:00:05]} 38. Ne5 {[%clk 0:00:07]}  Rf6 {[%clk 0:00:04]} 39. Nd7 {[%clk 0:00:07]}  Rxd7 {[%clk 0:00:04]} 40. cxd7 {[%clk 0:00:07]}  Qxd7 {[%clk 0:00:05]} 41. Qe4 {[%clk 0:00:07]}  Qf7 {[%clk 0:00:05]} 42. Rc8+ {[%clk 0:00:06]}  Qf8 {[%clk 0:00:03]} 43. Rxf8+ {[%clk 0:00:06]}  Kxf8 {[%clk 0:00:04]} 44. Qc4 {[%clk 0:00:05]}  Kf7 {[%clk 0:00:04]} 45. Kg2 {[%clk 0:00:05]}  Kg6 {[%clk 0:00:04]} 46. Qc2+ {[%clk 0:00:03]}  Kf7 {[%clk 0:00:04]} 47. Qa2 {[%clk 0:00:04]}  Kg6 {[%clk 0:00:04]} 48. f4 {[%clk 0:00:04]}  Kf7 {[%clk 0:00:04]} 49. h4 {[%clk 0:00:04]}  Ne7 {[%clk 0:00:04]} 50. Qa7 {[%clk 0:00:05]}  g6 {[%clk 0:00:03]} 51. Rd1 {[%clk 0:00:05]}  Ke8 {[%clk 0:00:02]} 52. Rd7 {[%clk 0:00:06]}  Rf7 {[%clk 0:00:02]} 53. Qc7 {[%clk 0:00:05]}  Kf8 {[%clk 0:00:02]} 54. Qd8+ {[%clk 0:00:05]}  Kg7 {[%clk 0:00:03]} 55. Rxe7 {[%clk 0:00:05]}  Rxe7 {[%clk 0:00:03]} 56. Qxe7+ {[%clk 0:00:06]}  Kg8 {[%clk 0:00:04]} 57. Qxe6+ {[%clk 0:00:06]}  Kg7 {[%clk 0:00:04]} 58. g4 {[%clk 0:00:06]}  Kh7 {[%clk 0:00:04]} 59. h5 {[%clk 0:00:06]}  gxh5 {[%clk 0:00:04]} 60. gxh5 {[%clk 0:00:06]}  Kg7 {[%clk 0:00:05]} 61. Qg6+ {[%clk 0:00:06]}  Kh8 {[%clk 0:00:05]} 62. Qxh6+ {[%clk 0:00:07]}  Kg8 {[%clk 0:00:06]} 63. Qg5+ {[%clk 0:00:06]}  Kf7 {[%clk 0:00:07]} 64. h6 {[%clk 0:00:06]}  Kf8 {[%clk 0:00:07]} 65. h7 {[%clk 0:00:06]}  Kf7 {[%clk 0:00:08]} 66. h8=Q {[%clk 0:00:06]}  Ke6 {[%clk 0:00:08]} 67. Qhf6+ {[%clk 0:00:06]}  Kd7 {[%clk 0:00:07]} 68. Qgg7+ {[%clk 0:00:07]} 1-0

[Event "December 19 Early 2023"]
[Site "https://www.chess.com"]
[Date "2023.12.19"]
[Round "4"]
[White "Bogumil, Tatiana"]
[Black "Player, Edmund C"]
[Result "0-1"]
[Board "237"]
[TimeControl "180+1"]
[WhiteFideId "4110579"]
[BlackFideId "406520"]
[WhiteElo "1853"]
[BlackElo "2015"]
[WhiteTeam "RUS"]
[BlackTeam "ENG"]
[WhiteClock "0:02:07"]
[BlackClock "0:01:45"]

1. Nf3 {[%clk 0:03:00]}  Nf6 {[%clk 0:02:57]} 2. c4 {[%clk 0:02:59]}  c6 {[%clk 0:02:52]} 3. b3 {[%clk 0:02:59]}  d5 {[%clk 0:02:51]} 4. Bb2 {[%clk 0:02:59]}  Bg4 {[%clk 0:02:50]} 5. Ne5 {[%clk 0:02:58]}  Bf5 {[%clk 0:02:49]} 6. g3 {[%clk 0:02:55]}  Nbd7 {[%clk 0:02:49]} 7. Nf3 {[%clk 0:02:55]}  h6 {[%clk 0:02:47]} 8. Bg2 {[%clk 0:02:55]}  e6 {[%clk 0:02:45]} 9. O-O {[%clk 0:02:55]}  Be7 {[%clk 0:02:44]} 10. d3 {[%clk 0:02:56]}  O-O {[%clk 0:02:41]} 11. Nbd2 {[%clk 0:02:56]}  Re8 {[%clk 0:02:34]} 12. Re1 {[%clk 0:02:52]}  Bh7 {[%clk 0:02:29]} 13. a3 {[%clk 0:02:51]}  Qc7 {[%clk 0:02:28]} 14. b4 {[%clk 0:02:48]}  e5 {[%clk 0:02:21]} 15. e4 {[%clk 0:02:41]}  dxe4 {[%clk 0:02:19]} 16. dxe4 {[%clk 0:02:42]}  a5 {[%clk 0:02:19]} 17. c5 {[%clk 0:02:38]}  Bg6 {[%clk 0:02:02]} 18. Nh4 {[%clk 0:02:33]}  Bh5 {[%clk 0:01:47]} 19. Nf5 {[%clk 0:02:07]}  Bxd1 {[%clk 0:01:45]} 0-1

[Event "December 19 Early 2023"]
[Site "https://www.chess.com"]
[Date "2023.12.19"]
[Round "4"]
[White "Rodriguez Santiago, Jaime"]
[Black "Egorov, Konstantin"]
[Result "1-0"]
[Board "238"]
[TimeControl "180+1"]
[WhiteFideId "3100898"]
[BlackFideId "24154369"]
[WhiteElo "2025"]
[BlackElo "1878"]
[WhiteTeam "PUR"]
[BlackTeam "RUS"]
[WhiteClock "0:00:26"]
[BlackClock "0:00:00"]

1. d4 {[%clk 0:02:55]}  Nf6 {[%clk 0:02:59]} 2. c4 {[%clk 0:02:55]}  e6 {[%clk 0:02:59]} 3. Nf3 {[%clk 0:02:53]}  b6 {[%clk 0:03:00]} 4. Nc3 {[%clk 0:02:51]}  Bb7 {[%clk 0:02:59]} 5. g3 {[%clk 0:02:44]}  Bb4 {[%clk 0:02:57]} 6. Bd2 {[%clk 0:02:39]}  O-O {[%clk 0:02:55]} 7. Bg2 {[%clk 0:02:38]}  Bxc3 {[%clk 0:02:55]} 8. Bxc3 {[%clk 0:02:38]}  Ne4 {[%clk 0:02:55]} 9. Qc2 {[%clk 0:02:33]}  f5 {[%clk 0:02:55]} 10. O-O {[%clk 0:02:33]}  d6 {[%clk 0:02:54]} 11. b4 {[%clk 0:02:23]}  Nd7 {[%clk 0:02:49]} 12. Bb2 {[%clk 0:02:22]}  c5 {[%clk 0:02:48]} 13. dxc5 {[%clk 0:02:17]}  bxc5 {[%clk 0:02:48]} 14. b5 {[%clk 0:02:16]}  Ndf6 {[%clk 0:02:40]} 15. h3 {[%clk 0:02:08]}  Qc7 {[%clk 0:02:38]} 16. a4 {[%clk 0:02:07]}  d5 {[%clk 0:02:30]} 17. Be5 {[%clk 0:01:57]}  Qe7 {[%clk 0:02:18]} 18. a5 {[%clk 0:01:55]}  Rad8 {[%clk 0:02:08]} 19. a6 {[%clk 0:01:51]}  Ba8 {[%clk 0:02:08]} 20. cxd5 {[%clk 0:01:46]}  exd5 {[%clk 0:02:06]} 21. Rfb1 {[%clk 0:01:44]}  d4 {[%clk 0:01:50]} 22. b6 {[%clk 0:01:39]}  axb6 {[%clk 0:01:48]} 23. Rxb6 {[%clk 0:01:38]}  Nd7 {[%clk 0:01:48]} 24. Qb3+ {[%clk 0:01:25]}  Kh8 {[%clk 0:01:47]} 25. Bc7 {[%clk 0:01:19]}  Rc8 {[%clk 0:01:34]} 26. Bf4 {[%clk 0:01:01]}  Nxb6 {[%clk 0:01:34]} 27. Qxb6 {[%clk 0:01:02]}  Rc6 {[%clk 0:01:27]} 28. Qb5 {[%clk 0:00:57]}  Nc3 {[%clk 0:01:20]} 29. Qc4 {[%clk 0:00:51]}  Nxe2+ {[%clk 0:01:14]} 30. Kh2 {[%clk 0:00:51]}  Nxf4 {[%clk 0:01:14]} 31. gxf4 {[%clk 0:00:52]}  Rg6 {[%clk 0:01:12]} 32. Ng5 {[%clk 0:00:51]}  Bxg2 {[%clk 0:01:08]} 33. Kxg2 {[%clk 0:00:51]}  h6 {[%clk 0:01:08]} 34. a7 {[%clk 0:00:51]}  Qb7+ {[%clk 0:01:05]} 35. Kh2 {[%clk 0:00:48]}  hxg5 {[%clk 0:01:05]} 36. Qxc5 {[%clk 0:00:46]}  Ra8 {[%clk 0:00:45]} 37. Qxf5 {[%clk 0:00:46]}  Ra6 {[%clk 0:00:44]} 38. Rb1 {[%clk 0:00:40]}  Rb6 {[%clk 0:00:40]} 39. Re1 {[%clk 0:00:35]}  Rb2 {[%clk 0:00:39]} 40. fxg5 {[%clk 0:00:31]}  Qc7+ {[%clk 0:00:37]} 41. Kg1 {[%clk 0:00:30]}  Qd6 {[%clk 0:00:29]} 42. g6 {[%clk 0:00:30]}  Rb5 {[%clk 0:00:11]} 43. Qxb5 {[%clk 0:00:29]}  Qxg6+ {[%clk 0:00:11]} 44. Kh1 {[%clk 0:00:27]}  Qf5 {[%clk 0:00:07]} 45. Qb8+ {[%clk 0:00:25]}  Kh7 {[%clk 0:00:06]} 46. Qxa8 {[%clk 0:00:25]}  Qxh3+ {[%clk 0:00:06]} 47. Kg1 {[%clk 0:00:25]}  Qg4+ {[%clk 0:00:06]} 48. Qg2 {[%clk 0:00:25]}  Qxg2+ {[%clk 0:00:00]} 49. Kxg2 {[%clk 0:00:26]} 1-0

[Event "December 19 Early 2023"]
[Site "https://www.chess.com"]
[Date "2023.12.19"]
[Round "5"]
[White "Mitrabha, Guha"]
[Black "Bluebaum, Matthias"]
[Result "1-0"]
[Board "3"]
[TimeControl "180+1"]
[WhiteFideId "5057000"]
[BlackFideId "24651516"]
[WhiteElo "2512"]
[BlackElo "2621"]
[WhiteTeam "IND"]
[BlackTeam "GER"]
[WhiteClock "0:00:23"]
[BlackClock "0:00:36"]

1. d4 {[%clk 0:02:57]}  d5 {[%clk 0:03:00]} 2. Nf3 {[%clk 0:02:56]}  e6 {[%clk 0:03:00]} 3. Bf4 {[%clk 0:02:57]}  c5 {[%clk 0:03:00]} 4. e3 {[%clk 0:02:57]}  Nc6 {[%clk 0:03:01]} 5. c3 {[%clk 0:02:57]}  Bd6 {[%clk 0:03:02]} 6. Bg3 {[%clk 0:02:52]}  Nge7 {[%clk 0:03:01]} 7. Nbd2 {[%clk 0:02:52]}  cxd4 {[%clk 0:03:02]} 8. exd4 {[%clk 0:02:52]}  O-O {[%clk 0:03:02]} 9. Bd3 {[%clk 0:02:53]}  f6 {[%clk 0:03:03]} 10. Qc2 {[%clk 0:02:49]}  h6 {[%clk 0:03:03]} 11. Bb5 {[%clk 0:02:34]}  e5 {[%clk 0:02:57]} 12. dxe5 {[%clk 0:02:33]}  fxe5 {[%clk 0:02:58]} 13. O-O {[%clk 0:02:29]}  e4 {[%clk 0:02:52]} 14. Bxc6 {[%clk 0:01:46]}  Nxc6 {[%clk 0:02:47]} 15. Nd4 {[%clk 0:01:45]}  Nxd4 {[%clk 0:02:44]} 16. cxd4 {[%clk 0:01:46]}  Bxg3 {[%clk 0:02:44]} 17. hxg3 {[%clk 0:01:45]}  Be6 {[%clk 0:02:44]} 18. Qb3 {[%clk 0:01:43]}  Qf6 {[%clk 0:02:41]} 19. Qe3 {[%clk 0:01:39]}  Rac8 {[%clk 0:02:41]} 20. Rac1 {[%clk 0:01:39]}  h5 {[%clk 0:02:34]} 21. Nb3 {[%clk 0:01:36]}  b6 {[%clk 0:02:33]} 22. Rxc8 {[%clk 0:01:35]}  Rxc8 {[%clk 0:02:34]} 23. Rc1 {[%clk 0:01:35]}  Rf8 {[%clk 0:02:14]} 24. Rc6 {[%clk 0:01:34]}  Qf5 {[%clk 0:02:14]} 25. Nc1 {[%clk 0:01:31]}  Qg4 {[%clk 0:01:59]} 26. Ne2 {[%clk 0:01:29]}  Bd7 {[%clk 0:01:59]} 27. Rc7 {[%clk 0:01:28]}  Bb5 {[%clk 0:02:00]} 28. Nc3 {[%clk 0:01:22]}  Bd3 {[%clk 0:01:49]} 29. Nxd5 {[%clk 0:01:15]}  h4 {[%clk 0:01:50]} 30. gxh4 {[%clk 0:01:10]}  Qxh4 {[%clk 0:01:50]} 31. Ne7+ {[%clk 0:01:01]}  Kh7 {[%clk 0:01:51]} 32. d5 {[%clk 0:01:02]}  Rf6 {[%clk 0:01:40]} 33. Qh3 {[%clk 0:00:39]}  Qxh3 {[%clk 0:01:39]} 34. gxh3 {[%clk 0:00:40]}  a5 {[%clk 0:01:32]} 35. Rc6 {[%clk 0:00:37]}  Bb5 {[%clk 0:01:00]} 36. Rxf6 {[%clk 0:00:34]}  gxf6 {[%clk 0:01:00]} 37. Nc8 {[%clk 0:00:34]}  Kg7 {[%clk 0:01:01]} 38. Nxb6 {[%clk 0:00:35]}  Kf7 {[%clk 0:01:02]} 39. d6 {[%clk 0:00:34]}  Ke6 {[%clk 0:01:02]} 40. d7 {[%clk 0:00:35]}  Ke7 {[%clk 0:01:01]} 41. h4 {[%clk 0:00:35]}  Be2 {[%clk 0:00:42]} 42. Kh2 {[%clk 0:00:34]}  f5 {[%clk 0:00:35]} 43. Kg3 {[%clk 0:00:34]}  Kd8 {[%clk 0:00:34]} 44. Kf4 {[%clk 0:00:34]}  Bg4 {[%clk 0:00:35]} 45. Kg5 {[%clk 0:00:31]}  Kc7 {[%clk 0:00:35]} 46. h5 {[%clk 0:00:28]}  Bxh5 {[%clk 0:00:28]} 47. Kxh5 {[%clk 0:00:29]}  f4 {[%clk 0:00:29]} 48. Kg4 {[%clk 0:00:28]}  e3 {[%clk 0:00:29]} 49. fxe3 {[%clk 0:00:28]}  fxe3 {[%clk 0:00:30]} 50. Kf3 {[%clk 0:00:28]}  e2 {[%clk 0:00:30]} 51. Kxe2 {[%clk 0:00:28]}  a4 {[%clk 0:00:31]} 52. Nxa4 {[%clk 0:00:27]}  Kc6 {[%clk 0:00:32]} 53. d8=Q {[%clk 0:00:27]}  Kb5 {[%clk 0:00:33]} 54. Qb6+ {[%clk 0:00:23]}  Kxa4 {[%clk 0:00:34]} 55. Qb8 {[%clk 0:00:22]}  Ka5 {[%clk 0:00:34]} 56. Kd3 {[%clk 0:00:23]}  Ka4 {[%clk 0:00:35]} 57. Kc4 {[%clk 0:00:23]}  Ka5 {[%clk 0:00:36]} 58. Qb5# {[%clk 0:00:23]} 1-0

[Event "December 19 Early 2023"]
[Site "https://www.chess.com"]
[Date "2023.12.19"]
[Round "5"]
[White "Maksimovic, Bojan"]
[Black "Korobov, Anton"]
[Result "0-1"]
[Board "5"]
[TimeControl "180+1"]
[WhiteFideId "14408120"]
[BlackFideId "14105730"]
[WhiteElo "2527"]
[BlackElo "2649"]
[WhiteTeam "BIH"]
[BlackTeam "UKR"]
[WhiteClock "0:00:01"]
[BlackClock "0:01:09"]

1. Nf3 {[%clk 0:03:00]}  d5 {[%clk 0:02:59]} 2. g3 {[%clk 0:03:00]}  c6 {[%clk 0:02:59]} 3. Bg2 {[%clk 0:03:01]}  Bg4 {[%clk 0:03:00]} 4. h3 {[%clk 0:03:01]}  Bh5 {[%clk 0:02:59]} 5. O-O {[%clk 0:03:00]}  Nd7 {[%clk 0:02:59]} 6. d4 {[%clk 0:02:58]}  e6 {[%clk 0:02:59]} 7. c4 {[%clk 0:02:58]}  Bd6 {[%clk 0:02:59]} 8. cxd5 {[%clk 0:02:51]}  exd5 {[%clk 0:02:58]} 9. Nh4 {[%clk 0:02:49]}  Ne7 {[%clk 0:02:55]} 10. Nc3 {[%clk 0:02:40]}  O-O {[%clk 0:02:47]} 11. g4 {[%clk 0:02:15]}  Bg6 {[%clk 0:02:45]} 12. f4 {[%clk 0:02:15]}  f5 {[%clk 0:02:44]} 13. e3 {[%clk 0:01:58]}  Nf6 {[%clk 0:02:38]} 14. Bd2 {[%clk 0:01:29]}  Qd7 {[%clk 0:02:31]} 15. Nxg6 {[%clk 0:01:20]}  hxg6 {[%clk 0:02:30]} 16. g5 {[%clk 0:01:17]}  Ne4 {[%clk 0:02:30]} 17. Nxe4 {[%clk 0:01:17]}  fxe4 {[%clk 0:02:13]} 18. Qg4 {[%clk 0:01:15]}  Nf5 {[%clk 0:02:10]} 19. h4 {[%clk 0:01:05]}  Kf7 {[%clk 0:02:10]} 20. h5 {[%clk 0:00:32]}  Rh8 {[%clk 0:02:08]} 21. hxg6+ {[%clk 0:00:29]}  Kxg6 {[%clk 0:02:00]} 22. Kf2 {[%clk 0:00:22]}  Rh4 {[%clk 0:01:56]} 23. Qe2 {[%clk 0:00:23]}  Re8 {[%clk 0:01:41]} 24. Rh1 {[%clk 0:00:19]}  Bxf4 {[%clk 0:01:40]} 25. Rxh4 {[%clk 0:00:16]}  Bg3+ {[%clk 0:01:40]} 26. Kg1 {[%clk 0:00:17]}  Nxh4 {[%clk 0:01:34]} 27. Rf1 {[%clk 0:00:15]}  Kxg5 {[%clk 0:01:34]} 28. Rf4 {[%clk 0:00:05]}  Bxf4 {[%clk 0:01:25]} 29. exf4+ {[%clk 0:00:05]}  Kf6 {[%clk 0:01:25]} 30. Qh5 {[%clk 0:00:02]}  Nxg2 {[%clk 0:01:25]} 31. f5 {[%clk 0:00:02]}  e3 {[%clk 0:01:19]} 32. Bb4 {[%clk 0:00:02]}  Qxf5 {[%clk 0:01:17]} 33. Qxe8 {[%clk 0:00:02]}  Qf2+ {[%clk 0:01:12]} 34. Kh1 {[%clk 0:00:03]}  Nf4 {[%clk 0:01:09]} 35. Be7+ {[%clk 0:00:03]}  Kf5 {[%clk 0:01:09]} 36. Qf7+ {[%clk 0:00:03]}  Ke4 {[%clk 0:01:09]} 37. Qxf4+ {[%clk 0:00:01]}  Kxf4 {[%clk 0:01:09]} 0-1

[Event "December 19 Early 2023"]
[Site "https://www.chess.com"]
[Date "2023.12.19"]
[Round "5"]
[White "Ter-Sahakyan, Samvel"]
[Black "Bortnyk, Olexandr"]
[Result "0-1"]
[Board "6"]
[TimeControl "180+1"]
[WhiteFideId "13302531"]
[BlackFideId "14120828"]
[WhiteElo "2556"]
[BlackElo "2731"]
[WhiteTeam "ARM"]
[BlackTeam "UKR"]
[WhiteClock "0:00:00"]
[BlackClock "0:00:07"]

1. d4 {[%clk 0:03:00]}  Nf6 {[%clk 0:02:56]} 2. c4 {[%clk 0:03:00]}  b6 {[%clk 0:02:56]} 3. Nc3 {[%clk 0:02:56]}  Bb7 {[%clk 0:02:56]} 4. Qc2 {[%clk 0:02:56]}  d5 {[%clk 0:02:44]} 5. cxd5 {[%clk 0:02:56]}  Nxd5 {[%clk 0:02:45]} 6. e4 {[%clk 0:02:56]}  Nxc3 {[%clk 0:02:42]} 7. bxc3 {[%clk 0:02:56]}  e5 {[%clk 0:02:43]} 8. Bb5+ {[%clk 0:02:42]}  Nd7 {[%clk 0:02:35]} 9. Nf3 {[%clk 0:02:40]}  exd4 {[%clk 0:02:31]} 10. O-O {[%clk 0:02:19]}  a6 {[%clk 0:02:27]} 11. Bxd7+ {[%clk 0:02:09]}  Qxd7 {[%clk 0:02:25]} 12. cxd4 {[%clk 0:02:10]}  Bd6 {[%clk 0:02:21]} 13. d5 {[%clk 0:02:00]}  f6 {[%clk 0:01:54]} 14. Bb2 {[%clk 0:01:54]}  O-O {[%clk 0:01:53]} 15. Nd4 {[%clk 0:01:52]}  Rfe8 {[%clk 0:01:51]} 16. Rfe1 {[%clk 0:01:49]}  Rac8 {[%clk 0:01:39]} 17. Rad1 {[%clk 0:01:48]}  Qg4 {[%clk 0:01:35]} 18. Nf5 {[%clk 0:01:33]}  Qf4 {[%clk 0:01:11]} 19. Nxd6 {[%clk 0:01:29]}  cxd6 {[%clk 0:01:07]} 20. Qd3 {[%clk 0:01:29]}  b5 {[%clk 0:01:06]} 21. a4 {[%clk 0:00:57]}  Rc4 {[%clk 0:01:06]} 22. axb5 {[%clk 0:00:57]}  axb5 {[%clk 0:01:06]} 23. f3 {[%clk 0:00:58]}  Rec8 {[%clk 0:00:58]} 24. Qd2 {[%clk 0:00:58]}  Qxd2 {[%clk 0:00:50]} 25. Rxd2 {[%clk 0:00:58]}  b4 {[%clk 0:00:50]} 26. Kf2 {[%clk 0:00:52]}  Kf7 {[%clk 0:00:49]} 27. Ra1 {[%clk 0:00:49]}  R8c7 {[%clk 0:00:47]} 28. Ra7 {[%clk 0:00:46]}  g6 {[%clk 0:00:42]} 29. Ke3 {[%clk 0:00:43]}  f5 {[%clk 0:00:41]} 30. e5 {[%clk 0:00:39]}  f4+ {[%clk 0:00:39]} 31. Ke2 {[%clk 0:00:34]}  dxe5 {[%clk 0:00:38]} 32. Bxe5 {[%clk 0:00:24]}  Re7 {[%clk 0:00:29]} 33. Kf2 {[%clk 0:00:24]}  Rd7 {[%clk 0:00:19]} 34. h4 {[%clk 0:00:20]}  b3 {[%clk 0:00:18]} 35. g3 {[%clk 0:00:17]}  Rc2 {[%clk 0:00:13]} 36. Rxc2 {[%clk 0:00:17]}  fxg3+ {[%clk 0:00:14]} 37. Kxg3 {[%clk 0:00:16]}  bxc2 {[%clk 0:00:15]} 38. Bf4 {[%clk 0:00:16]}  Kf6 {[%clk 0:00:11]} 39. d6 {[%clk 0:00:16]}  Ke6 {[%clk 0:00:09]} 40. Kf2 {[%clk 0:00:15]}  Rf7 {[%clk 0:00:09]} 41. Bg5 {[%clk 0:00:06]}  Rxf3+ {[%clk 0:00:09]} 42. Ke2 {[%clk 0:00:06]}  Rb3 {[%clk 0:00:10]} 43. Ra1 {[%clk 0:00:04]}  Rb1 {[%clk 0:00:09]} 44. Ra7 {[%clk 0:00:03]}  Kxd6 {[%clk 0:00:07]} 45. Bf4+ {[%clk 0:00:00]}  Kc6 {[%clk 0:00:07]} 0-1

[Event "December 19 Early 2023"]
[Site "https://www.chess.com"]
[Date "2023.12.19"]
[Round "5"]
[White "Drygalov, Sergey"]
[Black "Garcia Ramos, Daniel"]
[Result "1-0"]
[Board "7"]
[TimeControl "180+1"]
[WhiteFideId "24171743"]
[BlackFideId "32010311"]
[WhiteElo "2504"]
[BlackElo "2363"]
[WhiteTeam "RUS"]
[BlackTeam "ESP"]
[WhiteClock "0:01:01"]
[BlackClock "0:00:00"]

1. d4 {[%clk 0:03:00]}  d5 {[%clk 0:02:59]} 2. c4 {[%clk 0:03:01]}  e6 {[%clk 0:03:00]} 3. Nf3 {[%clk 0:03:01]}  Nf6 {[%clk 0:03:00]} 4. Nc3 {[%clk 0:03:02]}  c5 {[%clk 0:03:00]} 5. e3 {[%clk 0:03:01]}  dxc4 {[%clk 0:03:00]} 6. Bxc4 {[%clk 0:03:01]}  a6 {[%clk 0:03:00]} 7. O-O {[%clk 0:02:58]}  b5 {[%clk 0:03:00]} 8. Bd3 {[%clk 0:02:55]}  Bb7 {[%clk 0:02:59]} 9. Qe2 {[%clk 0:02:53]}  Nbd7 {[%clk 0:02:59]} 10. Rd1 {[%clk 0:02:50]}  Qb6 {[%clk 0:02:57]} 11. a4 {[%clk 0:02:48]}  b4 {[%clk 0:02:44]} 12. Nb1 {[%clk 0:02:48]}  Be7 {[%clk 0:02:32]} 13. Nbd2 {[%clk 0:02:48]}  O-O {[%clk 0:02:32]} 14. Nc4 {[%clk 0:02:48]}  Qc7 {[%clk 0:02:31]} 15. e4 {[%clk 0:02:49]}  cxd4 {[%clk 0:02:27]} 16. e5 {[%clk 0:02:46]}  Ng4 {[%clk 0:02:08]} 17. Bf4 {[%clk 0:02:32]}  f6 {[%clk 0:01:08]} 18. exf6 {[%clk 0:02:11]}  Qxf4 {[%clk 0:01:06]} 19. Qxe6+ {[%clk 0:02:11]}  Rf7 {[%clk 0:00:34]} 20. fxe7 {[%clk 0:01:53]}  Bxf3 {[%clk 0:00:26]} 21. e8=Q+ {[%clk 0:01:10]}  Rxe8 {[%clk 0:00:24]} 22. Qxe8+ {[%clk 0:01:11]}  Nf8 {[%clk 0:00:25]} 23. g3 {[%clk 0:01:11]}  Qh6 {[%clk 0:00:25]} 24. h4 {[%clk 0:01:10]}  Bxd1 {[%clk 0:00:24]} 25. Rxd1 {[%clk 0:01:06]}  Nxf2 {[%clk 0:00:16]} 26. Ne5 {[%clk 0:01:03]}  Rf6 {[%clk 0:00:05]} 27. Bc4+ {[%clk 0:01:01]}  Kh8 {[%clk 0:00:03]} 28. Nf7+ {[%clk 0:01:01]}  Rxf7 {[%clk 0:00:02]} 29. Qxf7 {[%clk 0:01:02]}  Nh3+ {[%clk 0:00:00]} 30. Kh2 {[%clk 0:01:01]} 1-0